[Event "44th Chess Olympiad Women 2022"]
[Site "Chennai"]
[Date "2022.08.07"]
[Round "9.53"]
[White "Nuha, Rilwan"]
[Black "Kapali, Binita"]
[Result "1-0"]
[WhiteElo "1068"]
[BlackElo "1511"]
[Annotator "NA"]
[PlyCount "91"]
[EventDate "2022.??.??"]
[TimeControl "60"]

1. Nf3 {[%emt 0:00:04]} d5 {[%emt 0:00:37]} 2. b3 {[%emt 0:00:11]} c5 {[%emt 0:
00:00]} 3. Bb2 {[%emt 0:00:09]} Nc6 {[%emt 0:00:40]} 4. e3 {[%emt 0:00:10]} a6
{[%emt 0:00:41]} 5. c4 {[%emt 0:06:56]} Nf6 {[%emt 0:06:06]} 6. cxd5 {[%emt 0:
00:00]} Nxd5 {[%emt 0:00:57]} 7. Be2 {[%emt 0:02:47]} Bf5 {[%emt 0:02:15]} 8.
a3 {[%emt 0:01:27]} e6 {[%emt 0:01:08]} 9. O-O {[%emt 0:00:45]} h6 {[%emt 0:00:
00]} 10. d3 {[%emt 0:04:35]} Bg6 {[%emt 0:03:20]} 11. Ne5 {[%emt 0:01:41]} Nxe5
{[%emt 0:01:40]} 12. Bxe5 {[%emt 0:00:08]} Nf6 {[%emt 0:01:17]} 13. f4 {
[%emt 0:03:40]} Bd6 {[%emt 0:02:44]} 14. Bb2 {[%emt 0:01:17]} O-O {[%emt 0:00:
00]} 15. e4 {[%emt 0:05:06]} Bc7 {[%emt 0:04:37]} 16. Nd2 {[%emt 0:03:59]} Re8
{[%emt 0:06:09]} 17. Nc4 {[%emt 0:01:59]} Nd7 {[%emt 0:03:45]} 18. Qe1 {
[%emt 0:10:00]} e5 {[%emt 0:06:57]} 19. f5 {[%emt 0:06:17]} Bh7 {[%emt 0:00:27]
} 20. Bc1 {[%emt 0:03:14]} Nb6 {[%emt 0:01:39]} 21. Be3 {[%emt 0:01:59]} Nd7 {
[%emt 0:02:07]} 22. Qg3 {[%emt 0:02:43]} Qf6 {[%emt 0:02:22]} 23. Qh3 {[%emt 0:
00:00]} b5 {[%emt 0:04:44]} 24. Nb2 {[%emt 0:01:52]} Bb6 {[%emt 0:00:32]} 25.
Rf3 {[%emt 0:03:47]} c4 {[%emt 0:04:04]} 26. Bxb6 {[%emt 0:00:45]} Qxb6+ {
[%emt 0:00:12]} 27. Kh1 {[%emt 0:00:45]} cxd3 {[%emt 0:00:52]} 28. Bxd3 {
[%emt 0:01:29]} Qd4 {[%emt 0:03:04]} 29. Rb1 {[%emt 0:01:52]} Nc5 {[%emt 0:00:
00]} 30. Rg3 {[%emt 0:06:10]} Qd6 {[%emt 0:08:13]} 31. b4 {[%emt 0:01:54]} Nxd3
{[%emt 0:00:18]} 32. Nxd3 {[%emt 0:00:38]} Red8 {[%emt 0:01:20]} 33. Nf2 {
[%emt 0:01:47]} Rac8 {[%emt 0:00:35]} 34. Rf1 {[%emt 0:01:51]} Rc2 {[%emt 0:00:
00]} 35. Kg1 {[%emt 0:02:23]} Rd2 {[%emt 0:02:55]} 36. Qh5 {[%emt 0:04:21]} Rd4
{[%emt 0:06:02]} 37. h3 {[%emt 0:01:35]} Qf6 {[%emt 0:02:26]} 38. Ng4 {[%emt 0:
00:00]} Qg5 {[%emt 0:05:06]} 39. Nxh6+ {[%emt 0:00:49]} gxh6 {[%emt 0:02:38]}
40. Rxg5+ {[%emt 0:00:12]} hxg5 {[%emt 0:00:15]} 41. Qxg5+ {[%emt 0:31:04]} Kh8
{[%emt 0:30:16]} 42. Qf6+ {[%emt 0:04:00]} Kg8 {[%emt 0:00:13]} 43. Qxe5 {
[%emt 0:04:25]} Rd3 {[%emt 0:00:42]} 44. Rf4 {[%emt 0:02:49]} Rg3 {[%emt 0:00:
00]} 45. Rg4+ {[%emt 0:00:00]} Rxg4 {[%emt 0:00:00]} 46. hxg4 {[%emt 0:00:00]}
1-0

[Event "44th Chess Olympiad Women 2022"]
[Site "Chennai"]
[Date "2022.08.07"]
[Round "9.54"]
[White "Yavo Tchetche, Marie"]
[Black "Castro, Neusa Aridas De"]
[Result "0-1"]
[WhiteElo "1313"]
[BlackElo "1531"]
[Annotator "NA RC"]
[PlyCount "120"]
[EventDate "2022.??.??"]
[TimeControl "60"]

1. d4 {[%emt 0:00:38]} e6 {[%emt 0:00:28]} 2. e3 {[%emt 0:00:30]} d5 {[%emt 0:
00:00]} 3. Bd3 {[%emt 0:01:06]} c5 {[%emt 0:00:56]} 4. c3 {[%emt 0:00:52]} Qb6
{[%emt 0:01:41]} 5. f4 {[%emt 0:01:16]} Nc6 {[%emt 0:01:26]} 6. Nf3 {[%emt 0:
00:00]} Nge7 {[%emt 0:01:50]} 7. Ng5 {[%emt 0:02:38]} h6 {[%emt 0:04:32]} 8.
Nh7 {[%emt 0:00:53]} Bd7 {[%emt 0:02:02]} 9. Nxf8 {[%emt 0:00:50]} Rxf8 {
[%emt 0:00:06]} 10. Qg4 {[%emt 0:01:14]} c4 {[%emt 0:01:45]} 11. Bc2 {[%emt 0:
00:00]} g6 {[%emt 0:00:13]} 12. O-O {[%emt 0:02:09]} O-O-O {[%emt 0:03:18]} 13.
Qh4 {[%emt 0:00:56]} h5 {[%emt 0:00:06]} 14. e4 {[%emt 0:00:47]} Rde8 {[%emt 0:
00:00]} 15. Nd2 {[%emt 0:01:15]} f5 {[%emt 0:12:15]} 16. b3 {[%emt 0:01:36]}
cxb3 {[%emt 0:00:31]} 17. Nxb3 {[%emt 0:00:28]} fxe4 {[%emt 0:00:23]} 18. Nc5 {
[%emt 0:01:08]} Qa5 {[%emt 0:01:20]} 19. Qh3 {[%emt 0:00:33]} Nf5 {[%emt 0:00:
00]} 20. a4 {[%emt 0:02:31]} Qd8 {[%emt 0:04:00]} 21. Ba3 {[%emt 0:05:24]} Rf7
{[%emt 0:01:45]} 22. Rab1 {[%emt 0:04:15]} Na5 {[%emt 0:00:41]} 23. Nxe4 {
[%emt 0:04:05]} dxe4 {[%emt 0:01:13]} 24. Bxe4 {[%emt 0:00:09]} Bc6 {[%emt 0:
00:00]} 25. Qf3 {[%emt 0:01:49]} Nxd4 {[%emt 0:04:17]} 26. cxd4 {[%emt 0:00:36]
} Qxd4+ {[%emt 0:00:13]} 27. Kh1 {[%emt 0:02:26]} Bxe4 {[%emt 0:01:39]} 28.
Rbc1+ {[%emt 0:00:49]} Bc6 {[%emt 0:00:36]} 29. Rfd1 {[%emt 0:01:07]} Qxf4 {
[%emt 0:00:47]} 30. Qc3 {[%emt 0:01:19]} Qxa4 {[%emt 0:03:06]} 31. Bb4 {
[%emt 0:03:17]} Rf5 {[%emt 0:01:03]} 32. Ra1 {[%emt 0:02:51]} Qb5 {[%emt 0:00:
00]} 33. Bxa5 {[%emt 0:00:45]} Ref8 {[%emt 0:02:42]} 34. Kg1 {[%emt 0:03:50]}
Qe2 {[%emt 0:00:16]} 35. Qg3 {[%emt 0:01:50]} Qf2+ {[%emt 0:01:21]} 36. Qxf2 {
[%emt 0:03:02]} Rxf2 {[%emt 0:00:05]} 37. Rd8+ {[%emt 0:00:13]} Rxd8 {[%emt 0:
00:00]} 38. Kxf2 {[%emt 0:00:47]} Rd5 {[%emt 0:01:27]} 39. Bc3 {[%emt 0:02:11]}
a6 {[%emt 0:01:25]} 40. Re1 {[%emt 0:01:11]} Kd7 {[%emt 0:02:04]} 41. Re2 {
[%emt 0:30:50]} a5 {[%emt 0:30:57]} 42. Re5 {[%emt 0:01:30]} Rxe5 {[%emt 0:00:
00]} 43. Bxe5 {[%emt 0:00:15]} b5 {[%emt 0:00:04]} 44. g3 {[%emt 0:00:56]} b4 {
[%emt 0:00:32]} 45. Ke3 {[%emt 0:00:20]} a4 {[%emt 0:00:13]} 46. Kd4 {[%emt 0:
00:00]} b3 {[%emt 0:03:47]} 47. Kc4 {[%emt 0:00:27]} Kc8 {[%emt 0:03:45]} 48.
Bb2 {[%emt 0:02:03]} g5 {[%emt 0:03:16]} 49. h4 {[%emt 0:00:59]} gxh4 {[%emt 0:
00:00]} 50. gxh4 {[%emt 0:00:07]} Bd7 {[%emt 0:00:10]} 51. Kc5 {[%emt 0:02:04]}
Kc7 {[%emt 0:04:04]} 52. Be5+ {[%emt 0:02:19]} Kd8 {[%emt 0:00:05]} 53. Bb2 {
[%emt 0:01:25]} Ke7 {[%emt 0:00:09]} 54. Kd4 {[%emt 0:00:47]} Kd6 {[%emt 0:00:
00]} 55. Ba3+ {[%emt 0:00:35]} Kc6 {[%emt 0:00:00]} 56. Bb2 {[%emt 0:04:42]}
Kb5 {[%emt 0:00:21]} 57. Ba3 {[%emt 0:00:38]} e5+ {[%emt 0:03:55]} 58. Kc3 {
[%emt 0:01:59]} e4 {[%emt 0:03:06]} 59. Bc1 {[%emt 0:05:44]} Be6 {[%emt 0:00:
00]} 60. Kb2 {[%emt 0:06:51]} Kc4 {[%emt 0:00:10]} 0-1

[Event "44th Chess Olympiad Women 2022"]
[Site "Chennai"]
[Date "2022.08.07"]
[Round "9.55"]
[White "Grishina, Alexandra"]
[Black "Sara, Gadalla Karar"]
[Result "1-0"]
[WhiteElo "2012"]
[BlackElo "1433"]
[Annotator "NA RC"]
[PlyCount "39"]
[EventDate "2022.??.??"]
[TimeControl "60"]

1. Nf3 {[%emt 0:00:33]} Nf6 {[%emt 0:00:18]} 2. d4 {[%emt 0:00:21]} e6 {
[%emt 0:00:06]} 3. Nbd2 {[%emt 0:03:28]} c5 {[%emt 0:05:28]} 4. e3 {[%emt 0:00:
00]} a6 {[%emt 0:02:46]} 5. b3 {[%emt 0:02:39]} b5 {[%emt 0:00:36]} 6. c4 {
[%emt 0:05:19]} Qb6 {[%emt 0:03:54]} 7. Bb2 {[%emt 0:04:00]} b4 {[%emt 0:07:49]
} 8. Bd3 {[%emt 0:02:58]} cxd4 {[%emt 0:08:56]} 9. exd4 {[%emt 0:10:03]} Be7 {
[%emt 0:00:52]} 10. O-O {[%emt 0:03:26]} O-O {[%emt 0:00:27]} 11. Re1 {[%emt 0:
00:00]} Re8 {[%emt 0:01:37]} 12. Rc1 {[%emt 0:01:51]} Bb7 {[%emt 0:00:59]} 13.
d5 {[%emt 0:05:19]} a5 {[%emt 0:05:56]} 14. Bb1 {[%emt 0:09:29]} Ng4 {[%emt 0:
00:00]} 15. Nd4 {[%emt 0:05:58]} Bc5 {[%emt 0:05:32]} 16. Qxg4 {[%emt 0:00:38]}
Na6 {[%emt 0:24:20]} 17. Bxh7+ {[%emt 0:08:58]} Kxh7 {[%emt 0:07:52]} 18. Nxe6
{[%emt 0:03:08]} Bxf2+ {[%emt 0:02:36]} 19. Kh1 {[%emt 0:01:09]} g6 {[%emt 0:
00:00]} 20. Qh3+ {[%emt 0:00:28]} 1-0

[Event "44th Chess Olympiad Women 2022"]
[Site "Chennai"]
[Date "2022.08.07"]
[Round "9.55"]
[White "Ibtihal Mohammed"]
[Black "Mouradian, Knarik"]
[Result "0-1"]
[WhiteElo "1445"]
[BlackElo "2121"]
[Annotator "RC"]
[PlyCount "115"]
[EventDate "2022.??.??"]
[TimeControl "60"]

1. Nf3 {[%emt 0:00:05]} d6 {[%emt 0:02:04]} 2. d4 {[%emt 0:00:34]} Nf6 {
[%emt 0:01:13]} 3. Bf4 {[%emt 0:00:09]} g6 {[%emt 0:00:37]} 4. Nc3 {[%emt 0:00:
00]} Bg7 {[%emt 0:00:24]} 5. Qd2 {[%emt 0:01:21]} h6 {[%emt 0:03:07]} 6. e4 {
[%emt 0:02:08]} g5 {[%emt 0:15:41]} 7. Bg3 {[%emt 0:17:38]} Nh5 {[%emt 0:03:36]
} 8. Bc4 {[%emt 0:03:22]} Nc6 {[%emt 0:17:41]} 9. d5 {[%emt 0:04:04]} Na5 {
[%emt 0:11:18]} 10. Be2 {[%emt 0:00:30]} Nxg3 {[%emt 0:07:49]} 11. hxg3 {
[%emt 0:00:08]} c5 {[%emt 0:03:37]} 12. a3 {[%emt 0:15:02]} a6 {[%emt 0:09:10]}
13. Rb1 {[%emt 0:15:01]} b5 {[%emt 0:01:26]} 14. b4 {[%emt 0:02:39]} cxb4 {
[%emt 0:09:05]} 15. axb4 {[%emt 0:02:21]} Qc7 {[%emt 0:00:56]} 16. Nd4 {
[%emt 0:00:44]} Nc4 {[%emt 0:03:13]} 17. Qd3 {[%emt 0:06:11]} Bd7 {[%emt 0:00:
00]} 18. O-O {[%emt 0:01:04]} O-O {[%emt 0:03:02]} 19. Nd1 {[%emt 0:01:34]} Qb6
{[%emt 0:01:15]} 20. c3 {[%emt 0:00:28]} Rfc8 {[%emt 0:00:50]} 21. Ne3 {
[%emt 0:06:45]} Nxe3 {[%emt 0:01:58]} 22. fxe3 {[%emt 0:02:04]} Ra7 {[%emt 0:
00:00]} 23. Bh5 {[%emt 0:00:27]} Be8 {[%emt 0:00:34]} 24. Nf5 {[%emt 0:00:14]}
Rxc3 {[%emt 0:00:19]} 25. Qd2 {[%emt 0:00:54]} Rac7 {[%emt 0:00:32]} 26. Rbc1 {
[%emt 0:01:09]} Rxc1 {[%emt 0:01:36]} 27. Rxc1 {[%emt 0:00:07]} Kf8 {[%emt 0:
00:00]} 28. Rxc7 {[%emt 0:00:22]} Qxc7 {[%emt 0:00:03]} 29. Nxg7 {[%emt 0:00:
00]} Kxg7 {[%emt 0:00:02]} 30. Qd4+ {[%emt 0:00:09]} Kg8 {[%emt 0:00:16]} 31.
Qd3 {[%emt 0:01:41]} a5 {[%emt 0:01:37]} 32. bxa5 {[%emt 0:02:10]} Qxa5 {
[%emt 0:00:02]} 33. Qc2 {[%emt 0:02:38]} Qd8 {[%emt 0:00:22]} 34. Qb2 {[%emt 0:
00:00]} Qb6 {[%emt 0:00:22]} 35. Kf2 {[%emt 0:00:23]} Bd7 {[%emt 0:01:14]} 36.
e5 {[%emt 0:00:47]} dxe5 {[%emt 0:01:02]} 37. Qxe5 {[%emt 0:00:09]} Qd6 {
[%emt 0:00:13]} 38. Qd4 {[%emt 0:02:15]} b4 {[%emt 0:00:39]} 39. Be2 {[%emt 0:
00:00]} Qb8 {[%emt 0:00:37]} 40. Bc4 {[%emt 0:00:50]} Bb5 {[%emt 0:00:23]} 41.
Bb3 {[%emt 0:30:12]} Qd6 {[%emt 0:30:31]} 42. e4 {[%emt 0:00:18]} f6 {[%emt 0:
00:00]} 43. Qa7 {[%emt 0:00:00]} Kg7 {[%emt 0:00:00]} 44. Qd4 {[%emt 0:00:00]}
h5 {[%emt 0:00:00]} 45. Bd1 {[%emt 0:00:00]} Kg6 {[%emt 0:00:00]} 46. Bc2 {
[%emt 0:00:00]} Qc7 {[%emt 0:00:00]} 47. Bb1 {[%emt 0:00:00]} Qc4 {[%emt 0:00:
00]} 48. Qxc4 {[%emt 0:00:00]} Bxc4 {[%emt 0:00:00]} 49. e5+ {[%emt 0:00:00]}
Kf7 {[%emt 0:00:00]} 50. e6+ {[%emt 0:00:00]} Ke8 {[%emt 0:00:00]} 51. Be4 {
[%emt 0:00:00]} b3 {[%emt 0:00:45]} 52. g4 {[%emt 0:00:00]} hxg4 {[%emt 0:00:
00]} 53. g3 {[%emt 0:00:00]} b2 {[%emt 0:00:40]} 54. Ke3 {[%emt 0:00:00]} Ba2 {
[%emt 0:01:02]} 55. Kd4 {[%emt 0:00:00]} b1=Q {[%emt 0:00:11]} 56. Bxb1 {
[%emt 0:00:00]} Bxb1 {[%emt 0:00:00]} 57. Kc5 {[%emt 0:00:00]} f5 {[%emt 0:00:
00]} 58. Kb6 {[%emt 0:00:00]} 0-1

[Event "44th Chess Olympiad Women 2022"]
[Site "Chennai"]
[Date "2022.08.07"]
[Round "9.55"]
[White "Rayan Sedee Mohamed"]
[Black "Bedrosian, Danielle"]
[Result "0-1"]
[WhiteElo "1168"]
[BlackElo "1662"]
[Annotator "NA"]
[PlyCount "72"]
[EventDate "2022.??.??"]
[TimeControl "60"]

1. e4 {[%emt 0:00:03]} g6 {[%emt 0:01:39]} 2. d4 {[%emt 0:01:31]} Bg7 {[%emt 0:
00:00]} 3. Nf3 {[%emt 0:01:41]} d6 {[%emt 0:05:19]} 4. Bc4 {[%emt 0:04:42]} e6
{[%emt 0:01:06]} 5. Nc3 {[%emt 0:01:36]} Ne7 {[%emt 0:05:32]} 6. Be3 {[%emt 0:
00:00]} a6 {[%emt 0:09:10]} 7. a4 {[%emt 0:05:52]} b6 {[%emt 0:03:24]} 8. Qd2 {
[%emt 0:12:30]} h6 {[%emt 0:04:20]} 9. d5 {[%emt 0:08:59]} e5 {[%emt 0:03:10]}
10. O-O {[%emt 0:05:13]} g5 {[%emt 0:03:33]} 11. Bd3 {[%emt 0:09:28]} Ng6 {
[%emt 0:04:44]} 12. Ne2 {[%emt 0:06:57]} Nd7 {[%emt 0:21:01]} 13. Qc3 {[%emt 0:
00:00]} Nf6 {[%emt 0:04:17]} 14. Qc6+ {[%emt 0:05:42]} Bd7 {[%emt 0:00:04]} 15.
Qb7 {[%emt 0:04:09]} O-O {[%emt 0:02:46]} 16. Bxa6 {[%emt 0:04:37]} Nxe4 {
[%emt 0:04:20]} 17. Bb5 {[%emt 0:03:27]} Nc5 {[%emt 0:05:19]} 18. Bxc5 {
[%emt 0:00:56]} bxc5 {[%emt 0:00:07]} 19. Bxd7 {[%emt 0:00:58]} Qxd7 {[%emt 0:
00:00]} 20. Qc6 {[%emt 0:02:20]} Qxc6 {[%emt 0:01:06]} 21. dxc6 {[%emt 0:00:07]
} Ne7 {[%emt 0:01:33]} 22. c3 {[%emt 0:01:57]} Nxc6 {[%emt 0:00:18]} 23. Rfd1 {
[%emt 0:01:12]} Rfd8 {[%emt 0:03:57]} 24. Ng3 {[%emt 0:02:23]} Ne7 {[%emt 0:00:
00]} 25. Nf1 {[%emt 0:01:16]} d5 {[%emt 0:02:31]} 26. Re1 {[%emt 0:02:28]} Ng6
{[%emt 0:00:51]} 27. Ne3 {[%emt 0:01:12]} e4 {[%emt 0:01:24]} 28. Nd2 {[%emt 0:
00:00]} Ne7 {[%emt 0:03:58]} 29. f3 {[%emt 0:01:28]} f5 {[%emt 0:00:25]} 30.
fxe4 {[%emt 0:00:44]} fxe4 {[%emt 0:01:31]} 31. Rf1 {[%emt 0:01:12]} d4 {
[%emt 0:03:10]} 32. cxd4 {[%emt 0:00:29]} cxd4 {[%emt 0:00:03]} 33. Ng4 {
[%emt 0:01:42]} e3 {[%emt 0:00:19]} 34. Nc4 {[%emt 0:00:40]} e2 {[%emt 0:00:59]
} 35. Rfe1 {[%emt 0:00:24]} d3 {[%emt 0:00:09]} 36. Nf2 {[%emt 0:00:46]} Nf5 {
[%emt 0:00:47]} 0-1

[Event "44th Chess Olympiad Women 2022"]
[Site "Chennai"]
[Date "2022.08.07"]
[Round "9.56"]
[White "Bouzana, Christina"]
[Black "Elfelo, Khadija"]
[Result "1/2-1/2"]
[WhiteElo "1079"]
[BlackElo "1875"]
[Annotator "NA RC"]
[PlyCount "126"]
[EventDate "2022.??.??"]
[TimeControl "60"]

1. d4 {[%emt 0:00:02]} Nf6 {[%emt 0:00:08]} 2. Bg5 {[%emt 0:00:02]} g6 {
[%emt 0:02:56]} 3. Bxf6 {[%emt 0:00:15]} exf6 {[%emt 0:00:06]} 4. e3 {[%emt 0:
00:00]} Bg7 {[%emt 0:00:09]} 5. Nf3 {[%emt 0:01:40]} O-O {[%emt 0:00:10]} 6.
Bd3 {[%emt 0:01:49]} d6 {[%emt 0:02:06]} 7. O-O {[%emt 0:01:14]} Nc6 {[%emt 0:
00:00]} 8. c3 {[%emt 0:00:34]} Bd7 {[%emt 0:01:17]} 9. Nbd2 {[%emt 0:00:37]}
Re8 {[%emt 0:01:25]} 10. Qc2 {[%emt 0:02:09]} f5 {[%emt 0:02:48]} 11. Rfe1 {
[%emt 0:00:20]} Qc8 {[%emt 0:01:43]} 12. e4 {[%emt 0:08:22]} fxe4 {[%emt 0:00:
00]} 13. Bxe4 {[%emt 0:01:56]} Ne7 {[%emt 0:03:18]} 14. Qb3 {[%emt 0:06:37]} c6
{[%emt 0:02:15]} 15. Bd3 {[%emt 0:07:04]} Be6 {[%emt 0:08:37]} 16. Qc2 {
[%emt 0:02:02]} Bf5 {[%emt 0:02:14]} 17. Ne4 {[%emt 0:02:49]} Qc7 {[%emt 0:00:
00]} 18. Ng3 {[%emt 0:04:00]} Bxd3 {[%emt 0:00:23]} 19. Qxd3 {[%emt 0:00:09]}
Nd5 {[%emt 0:00:25]} 20. Qd2 {[%emt 0:03:12]} Qd7 {[%emt 0:01:33]} 21. Rab1 {
[%emt 0:03:51]} Qg4 {[%emt 0:02:23]} 22. h3 {[%emt 0:02:55]} Qf4 {[%emt 0:00:
00]} 23. Qxf4 {[%emt 0:04:51]} Nxf4 {[%emt 0:00:02]} 24. Red1 {[%emt 0:01:19]}
Re7 {[%emt 0:02:44]} 25. Kf1 {[%emt 0:02:50]} Rae8 {[%emt 0:01:17]} 26. Re1 {
[%emt 0:02:34]} h5 {[%emt 0:02:50]} 27. Rxe7 {[%emt 0:02:06]} Rxe7 {[%emt 0:00:
00]} 28. Rd1 {[%emt 0:01:27]} Bf6 {[%emt 0:01:18]} 29. h4 {[%emt 0:01:29]} Kg7
{[%emt 0:01:48]} 30. Rd2 {[%emt 0:01:53]} a5 {[%emt 0:02:16]} 31. a4 {[%emt 0:
00:00]} Kh6 {[%emt 0:06:27]} 32. Rd1 {[%emt 0:03:09]} Re6 {[%emt 0:01:52]} 33.
Rd2 {[%emt 0:02:35]} Bd8 {[%emt 0:01:26]} 34. c4 {[%emt 0:03:16]} d5 {[%emt 0:
00:00]} 35. b3 {[%emt 0:04:39]} f6 {[%emt 0:02:33]} 36. Ne2 {[%emt 0:01:26]}
Re4 {[%emt 0:12:45]} 37. Nxf4 {[%emt 0:00:56]} Rxf4 {[%emt 0:00:10]} 38. Ke2 {
[%emt 0:04:52]} Re4+ {[%emt 0:01:18]} 39. Kd3 {[%emt 0:00:08]} Rf4 {[%emt 0:00:
00]} 40. Ke2 {[%emt 0:00:25]} g5 {[%emt 0:04:45]} 41. hxg5+ {[%emt 0:36:13]}
fxg5 {[%emt 0:30:26]} 42. Ne5 {[%emt 0:04:01]} Bf6 {[%emt 0:04:32]} 43. cxd5 {
[%emt 0:05:57]} cxd5 {[%emt 0:04:00]} 44. f3 {[%emt 0:02:21]} g4 {[%emt 0:00:
00]} 45. g3 {[%emt 0:00:00]} gxf3+ {[%emt 0:00:00]} 46. Nxf3 {[%emt 0:00:00]}
Re4+ {[%emt 0:00:00]} 47. Kf2 {[%emt 0:00:00]} Kg6 {[%emt 0:00:00]} 48. Rd3 {
[%emt 0:00:00]} Kf5 {[%emt 0:00:00]} 49. Rd2 {[%emt 0:00:00]} h4 {[%emt 0:00:
00]} 50. gxh4 {[%emt 0:00:00]} Bxh4+ {[%emt 0:00:00]} 51. Nxh4+ {[%emt 0:00:00]
} Rxh4 {[%emt 0:00:00]} 52. Kg3 {[%emt 0:00:00]} Rf4 {[%emt 0:00:00]} 53. Rd1 {
[%emt 0:00:00]} Rg4+ {[%emt 0:00:00]} 54. Kf3 {[%emt 0:00:00]} Rf4+ {[%emt 0:
00:00]} 55. Ke3 {[%emt 0:00:00]} Rh4 {[%emt 0:01:19]} 56. Rf1+ {[%emt 0:00:00]}
Ke6 {[%emt 0:00:10]} 57. Rf3 {[%emt 0:00:00]} Rh2 {[%emt 0:04:26]} 58. Kd3 {
[%emt 0:00:00]} Rb2 {[%emt 0:00:57]} 59. Kc3 {[%emt 0:00:00]} Re2 {[%emt 0:00:
00]} 60. b4 {[%emt 0:00:00]} axb4+ {[%emt 0:01:26]} 61. Kxb4 {[%emt 0:00:00]}
Rc2 {[%emt 0:00:47]} 62. Kb5 {[%emt 0:03:09]} Rc4 {[%emt 0:00:56]} 63. Rf4 {
[%emt 0:02:32]} b6 {[%emt 0:01:18]} 1/2-1/2

[Event "44th Chess Olympiad Women 2022"]
[Site "Chennai"]
[Date "2022.08.07"]
[Round "9.56"]
[White "El Flow, Khuloud"]
[Black "Sokolova, Victoria"]
[Result "0-1"]
[WhiteElo "1836"]
[BlackElo "1193"]
[Annotator "NA RC"]
[PlyCount "48"]
[EventDate "2022.??.??"]
[TimeControl "60"]

1. e4 {[%emt 0:00:03]} e5 {[%emt 0:00:12]} 2. Nf3 {[%emt 0:00:12]} Nc6 {
[%emt 0:00:10]} 3. Bc4 {[%emt 0:00:54]} Bc5 {[%emt 0:00:20]} 4. O-O {[%emt 0:
00:00]} Nf6 {[%emt 0:00:09]} 5. Re1 {[%emt 0:00:33]} O-O {[%emt 0:00:08]} 6. c3
{[%emt 0:02:08]} Nxe4 {[%emt 0:05:26]} 7. Rxe4 {[%emt 0:01:37]} d5 {[%emt 0:00:
00]} 8. Bxd5 {[%emt 0:00:54]} Qxd5 {[%emt 0:00:18]} 9. Qe2 {[%emt 0:00:58]} Bg4
{[%emt 0:01:02]} 10. Rxg4 {[%emt 0:01:57]} f5 {[%emt 0:00:12]} 11. Rg3 {
[%emt 0:08:33]} e4 {[%emt 0:03:32]} 12. Ne1 {[%emt 0:07:53]} f4 {[%emt 0:02:41]
} 13. Rg4 {[%emt 0:07:52]} Ne5 {[%emt 0:00:40]} 14. Rh4 {[%emt 0:02:04]} Be7 {
[%emt 0:02:20]} 15. Rh3 {[%emt 0:01:56]} Rf6 {[%emt 0:07:25]} 16. f3 {[%emt 0:
00:00]} Bc5+ {[%emt 0:01:56]} 17. Kf1 {[%emt 0:01:18]} exf3 {[%emt 0:02:57]}
18. Nxf3 {[%emt 0:02:10]} Nd3 {[%emt 0:04:00]} 19. Na3 {[%emt 0:02:17]} Re6 {
[%emt 0:00:43]} 20. Qd1 {[%emt 0:05:06]} Rae8 {[%emt 0:00:47]} 21. c4 {[%emt 0:
00:00]} Qxf3+ {[%emt 0:02:51]} 22. gxf3 {[%emt 0:02:27]} Re1+ {[%emt 0:00:09]}
23. Kg2 {[%emt 0:01:19]} R8e2+ {[%emt 0:00:29]} 24. Qxe2 {[%emt 0:00:39]} Rg1#
{[%emt 0:00:54]} 0-1

[Event "44th Chess Olympiad Women 2022"]
[Site "Chennai"]
[Date "2022.08.07"]
[Round "9.57"]
[White "De la Riva Real, Ariadna"]
[Black "Leboela, Maboloko"]
[Result "1-0"]
[WhiteElo "1649"]
[BlackElo "1253"]
[Annotator "NA RC"]
[PlyCount "135"]
[EventDate "2022.??.??"]
[TimeControl "60"]

1. e4 {[%emt 0:00:02]} d6 {[%emt 0:00:27]} 2. d4 {[%emt 0:04:23]} Nf6 {[%emt 0:
00:00]} 3. Nc3 {[%emt 0:00:52]} g6 {[%emt 0:00:17]} 4. g3 {[%emt 0:01:18]} Bg7
{[%emt 0:00:28]} 5. Bg2 {[%emt 0:00:50]} Nbd7 {[%emt 0:02:51]} 6. Nge2 {
[%emt 0:02:37]} c5 {[%emt 0:01:03]} 7. d5 {[%emt 0:09:54]} Qc7 {[%emt 0:00:17]}
8. O-O {[%emt 0:02:35]} a6 {[%emt 0:00:51]} 9. a4 {[%emt 0:02:21]} O-O {
[%emt 0:00:08]} 10. f4 {[%emt 0:05:34]} e6 {[%emt 0:01:30]} 11. dxe6 {[%emt 0:
00:00]} fxe6 {[%emt 0:00:14]} 12. f5 {[%emt 0:01:06]} Ne5 {[%emt 0:03:09]} 13.
fxg6 {[%emt 0:05:55]} Nxg6 {[%emt 0:00:32]} 14. Nf4 {[%emt 0:03:48]} Ne8 {
[%emt 0:03:16]} 15. Nce2 {[%emt 0:06:45]} Qe7 {[%emt 0:04:23]} 16. Nxg6 {
[%emt 0:05:25]} Rxf1+ {[%emt 0:00:10]} 17. Qxf1 {[%emt 0:01:43]} hxg6 {[%emt 0:
00:00]} 18. Nf4 {[%emt 0:00:45]} Bd4+ {[%emt 0:00:35]} 19. Kh1 {[%emt 0:01:05]}
Qf7 {[%emt 0:00:14]} 20. c3 {[%emt 0:01:20]} Bg7 {[%emt 0:00:31]} 21. Be3 {
[%emt 0:02:14]} g5 {[%emt 0:01:18]} 22. Nh3 {[%emt 0:02:09]} Qxf1+ {[%emt 0:00:
00]} 23. Bxf1 {[%emt 0:00:33]} g4 {[%emt 0:00:52]} 24. Nf2 {[%emt 0:00:23]} e5
{[%emt 0:00:10]} 25. Be2 {[%emt 0:00:39]} Nf6 {[%emt 0:01:38]} 26. Rd1 {
[%emt 0:01:17]} Bf8 {[%emt 0:00:27]} 27. Bg5 {[%emt 0:00:59]} Nh7 {[%emt 0:00:
00]} 28. Bc4+ {[%emt 0:03:57]} Kg7 {[%emt 0:00:40]} 29. Bd8 {[%emt 0:01:26]}
Bd7 {[%emt 0:00:17]} 30. Bc7 {[%emt 0:00:20]} b5 {[%emt 0:03:06]} 31. Bxd6 {
[%emt 0:03:54]} Bxd6 {[%emt 0:04:03]} 32. Rxd6 {[%emt 0:00:14]} Nf6 {[%emt 0:
00:00]} 33. Be6 {[%emt 0:01:52]} Bxe6 {[%emt 0:02:35]} 34. Rxe6 {[%emt 0:00:07]
} bxa4 {[%emt 0:00:05]} 35. Rxe5 {[%emt 0:00:24]} Rb8 {[%emt 0:00:06]} 36. Nd3
{[%emt 0:02:16]} c4 {[%emt 0:00:01]} 37. Nb4 {[%emt 0:00:17]} a5 {[%emt 0:00:
00]} 38. Rxa5 {[%emt 0:00:14]} Nxe4 {[%emt 0:00:07]} 39. Rxa4 {[%emt 0:00:38]}
Nf2+ {[%emt 0:00:50]} 40. Kg1 {[%emt 0:01:49]} Nd3 {[%emt 0:00:08]} 41. Nxd3 {
[%emt 0:30:26]} cxd3 {[%emt 0:30:02]} 42. Rxg4+ {[%emt 0:00:08]} Kf6 {[%emt 0:
00:00]} 43. Rd4 {[%emt 0:00:24]} Rxb2 {[%emt 0:00:11]} 44. Rxd3 {[%emt 0:00:07]
} Rb1+ {[%emt 0:00:05]} 45. Kg2 {[%emt 0:00:29]} Rc1 {[%emt 0:00:48]} 46. g4 {
[%emt 0:00:24]} Kg5 {[%emt 0:00:33]} 47. Kh3 {[%emt 0:12:03]} Rc2 {[%emt 0:00:
00]} 48. Kg3 {[%emt 0:03:59]} Rc1 {[%emt 0:00:04]} 49. h4+ {[%emt 0:00:06]} Kg6
{[%emt 0:00:20]} 50. Kf4 {[%emt 0:00:21]} Rf1+ {[%emt 0:00:02]} 51. Rf3 {
[%emt 0:00:06]} Ra1 {[%emt 0:00:43]} 52. Rd3 {[%emt 0:05:38]} Rf1+ {[%emt 0:00:
00]} 53. Ke3 {[%emt 0:00:22]} Re1+ {[%emt 0:00:28]} 54. Kf2 {[%emt 0:00:14]}
Re4 {[%emt 0:00:07]} 55. Rd4 {[%emt 0:00:52]} Re8 {[%emt 0:00:07]} 56. c4 {
[%emt 0:00:26]} Rf8+ {[%emt 0:00:05]} 57. Kg3 {[%emt 0:00:11]} Ra8 {[%emt 0:00:
00]} 58. c5 {[%emt 0:00:26]} Ra3+ {[%emt 0:00:08]} 59. Kf4 {[%emt 0:00:05]} Rc3
{[%emt 0:00:12]} 60. h5+ {[%emt 0:01:49]} Kf6 {[%emt 0:00:03]} 61. g5+ {
[%emt 0:00:18]} Kg7 {[%emt 0:01:08]} 62. Rd5 {[%emt 0:00:00]} Rc4+ {[%emt 0:00:
00]} 63. Kf5 {[%emt 0:00:00]} Rc1 {[%emt 0:00:00]} 64. h6+ {[%emt 0:00:00]} Kh7
{[%emt 0:00:00]} 65. Rd7+ {[%emt 0:00:00]} Kg8 {[%emt 0:00:00]} 66. Kg6 {
[%emt 0:00:00]} Rf1 {[%emt 0:00:00]} 67. Rd8+ {[%emt 0:00:00]} Rf8 {[%emt 0:00:
00]} 68. h7+ {[%emt 0:00:00]} 1-0